lending/lending_fUSD_20240206
["ID","MTS","AMOUNT","RATE_DAILY","PERIOD"]
[313388992,1707261039098,-718.76,0.00022697,2]
[313388993,1707261039108,-2885.6139,0.00022698,2]
[313388994,1707261039116,-7966.31794121,0.00022698,2]
[313388995,1707261039130,-3464.4763834,0.00022698,2]
[313388996,1707261039141,-203807.7957282,0.00022698,2]
[313388997,1707261039153,-26630.38234719,0.00022698,2]
[313388998,1707261039162,-16361.2903,0.00022698,2]
[313388999,1707261039170,-712.51,0.00022698,2]
[313389000,1707261039179,-673.17387208,0.00022699,2]
[313389001,1707261039189,-500.0,0.000227,8]
[313389002,1707261039198,-596.19847587,0.00022704,2]
[313389003,1707261039206,-351.85,0.00022705,2]
[313389004,1707261039215,-176.01,0.00022705,2]
[313389005,1707261039225,-596.19847587,0.00022729,2]
[313389006,1707261039234,-735.07,0.00022749,2]
[313389007,1707261039243,-176.01,0.00022765,2]
[313389008,1707261039252,-1214.07224955,0.00022767,2]
[313389009,1707261039261,-12770.0,0.00022769,2]
[313389010,1707261039270,-339.90195178,0.00022798,2]
[313389011,1707261039279,-190695.5191,0.00022799,2]
[313389012,1707261039288,-1219.8473,0.00022799,2]
[313389013,1707261039297,-7650.9737,0.00022799,2]
[313389014,1707261039306,-18968.5516462,0.000228,2]
[313389015,1707261039317,-21046.45405088,0.000228,2]
[313389016,1707261039333,-942.60999033,0.000228,2]
[313389017,1707261039345,-2447.79457723,0.000228,2]
[313389018,1707261039362,-6464.66124889,0.000228,2]
[313389019,1707261039374,-6116.19569783,0.000228,2]
[313389020,1707261039385,-5029.04993774,0.000228,2]
[313389021,1707261040662,-303.84007919,0.000228,2]
[313389022,1707261040675,-38680.84277171,0.000228,2]
[313389023,1707261040685,-800.0,0.000228,8]
[313389024,1707261040693,-800.0,0.00022814,2]
[313389025,1707261040704,-176.01,0.00022824,2]
[313389026,1707261040714,-176.01,0.00022884,2]
[313389027,1707261040723,-1798.98637038,0.00022898,2]
[313389028,1707261040732,-161.61485254,0.00022899,2]
[313389029,1707261040741,-4283.34789709,0.00022899,2]
[313389030,1707261040750,-2000.0,0.000229,2]
[313389031,1707261040759,-200.0,0.000229,2]
[313389032,1707261040768,-216.35570619,0.000229,2]
[313389033,1707261040777,-2239.76182319,0.000229,2]
[313389034,1707261040787,-391.37906195,0.000229,2]
[313389035,1707261040796,-627.28559712,0.000229,2]
[313389036,1707261040806,-1836.5082319,0.000229,2]
[313389037,1707261040815,-1334.24831641,0.000229,2]
[313389038,1707261040824,-781.97861393,0.000229,2]
[313389039,1707261040834,-1100.0,0.000229,8]
[313389040,1707261040843,-176.01,0.00022944,2]
[313389041,1707261040865,-324.49689913,0.0002299,2]
[313389042,1707261040878,-156.52864834,0.00022994,2]
[313389043,1707261040888,-374.66761913,0.00022994,2]
[313389044,1707261040897,-1214.07224955,0.00022997,2]
[313389045,1707261040909,-2643.97183326,0.00022997,2]
[313389046,1707261040920,-151.0207,0.00022997,3]
[313389047,1707261040930,-151.0207,0.00022997,3]
[313389048,1707261040940,-151.0207,0.00022997,3]
[313389049,1707261040951,-151.0207,0.00022997,3]
[313389050,1707261040961,-150.0207,0.00022997,3]
[313389051,1707261040971,-5257.18632333,0.00022998,2]
[313389052,1707261040981,-413.39356249,0.00022998,2]
[313389053,1707261040991,-157.02308234,0.00022998,2]
[313389054,1707261041000,-301.746334,0.00022998,2]
[313389055,1707261041010,-220.3694197,0.00022998,2]
[313389056,1707261041019,-161.5583278,0.00022998,2]
[313389057,1707261041029,-282.87937825,0.00022998,2]
[313389058,1707261041039,-342.81727514,0.00022998,2]
[313389059,1707261041048,-348.8905171,0.00022999,10]
[313389060,1707261041058,-433.76783552,0.00022999,2]
[313389061,1707261041067,-473.33751851,0.00022999,2]
[313389062,1707261041077,-500.0,0.00022999,2]
[313389063,1707261041086,-459.76210223,0.00022999,2]
[313389064,1707261041096,-215.68546543,0.00022999,2]
[313389065,1707261041105,-463.3769608,0.00022999,2]
[313389066,1707261041114,-229.10345424,0.00022999,2]
[313389067,1707261041124,-500.0,0.00022999,2]
[313389068,1707261041134,-578.32089004,0.00022999,2]
[313389069,1707261041143,-238.19795776,0.00022999,2]
[313389070,1707261041152,-500.0,0.00022999,2]
[313389071,1707261041161,-500.0,0.00022999,2]
[313389072,1707261041171,-500.0,0.00022999,2]
[313389073,1707261041180,-500.0,0.00022999,2]
[313389074,1707261041189,-500.0,0.00022999,2]
[313389075,1707261041198,-323.73437124,0.00022999,2]
[313389076,1707261041207,-500.0,0.00022999,2]
[313389077,1707261041216,-500.0,0.00022999,2]
[313389078,1707261041225,-500.0,0.00022999,2]
[313389079,1707261041234,-648.30248713,0.00022999,2]
[313389080,1707261041243,-545.02936003,0.00022999,2]
[313389081,1707261041252,-265.78389998,0.00022999,2]
[313389082,1707261041261,-500.0,0.00022999,2]
[313389083,1707261041270,-264.96824707,0.00022999,2]
[313389084,1707261041279,-500.0,0.00022999,2]
[313389085,1707261041289,-500.0,0.00022999,2]
[313389086,1707261041298,-500.0,0.00022999,2]
[313389087,1707261041307,-500.0,0.00022999,2]
[313389088,1707261041317,-500.0,0.00022999,2]
[313389089,1707261041326,-500.0,0.00022999,2]
[313389090,1707261041335,-500.0,0.00022999,2]
[313389091,1707261041345,-500.0,0.00022999,2]
[313389092,1707261041354,-500.0,0.00022999,2]
[313389093,1707261041367,-300.62001002,0.00022999,2]
[313389094,1707261041377,-500.0,0.00022999,2]
[313389095,1707261041386,-500.0,0.00022999,2]
[313389096,1707261041395,-500.0,0.00022999,2]
[313389097,1707261041405,-431.6935548,0.00022999,2]
[313389098,1707261041414,-500.0,0.00022999,2]
[313389099,1707261041423,-500.0,0.00022999,2]
[313389100,1707261041432,-500.0,0.00022999,2]
[313389101,1707261041441,-500.0,0.00022999,2]
[313389102,1707261041451,-177829.17184236,0.00023,2]
[313389103,1707261041466,-697.47598461,0.00023,2]
[313389104,1707261041478,-2119.39195861,0.00023,2]
[313389105,1707261041489,-391.0305,0.00023,2]
[313389106,1707261041501,-660.87471969,0.00023,2]
[313389107,1707261041513,-3424.45228262,0.00023,2]
[313389121,1707261042116,-1402.38,0.00023,2]
[313389122,1707261042145,-45384.00409107,0.00023,2]
[313389123,1707261042158,-342.53302919,0.00023,2]
[313389124,1707261042170,-668.18488677,0.00023,2]
[313389125,1707261042181,-1642.51693484,0.00023,2]
[313389126,1707261042193,-16672.96539049,0.00023,2]
[313389136,1707261043108,-596.19847587,0.00022753,2]
[313389137,1707261043117,-678.17846133,0.00023,2]
[313389138,1707261043323,-718065.19774463,0.00023,2]
[313389139,1707261043334,-296.5435171,0.00023,2]
[313389145,1707261046096,-335.30570427,0.00023,2]
[313389146,1707261046108,-2550.0,0.00023,2]
[313389147,1707261046151,-1004.61483458,0.00023,2]
[313389148,1707261046288,-1335.57189952,0.00023,2]
[313389149,1707261046300,-625.78784407,0.00023,2]
[313389150,1707261046334,-411.43362988,0.00023,2]
[313389151,1707261046346,-3233.62504369,0.00023,2]
[313389152,1707261046361,-37492.11294116,0.00023,2]
[313389153,1707261046372,-128101.06360621,0.00023,2]
[313389154,1707261046383,-20055.07270493,0.00023,2]
[313389155,1707261046394,-551.28542087,0.00023,2]
[313389156,1707261046405,-690.60504577,0.00023,2]
[313389157,1707261046416,-4999.54305,0.00023,2]
[313389158,1707261046428,-768.0,0.00023,2]
[313389159,1707261046440,-267.12499998,0.00023,2]
[313389160,1707261046451,-473.05077416,0.00023,2]
[313389161,1707261046467,-276.36,0.00023,2]
[313389162,1707261046478,-495.06200404,0.00023,2]
[313389163,1707261046489,-1578.22366048,0.00023,2]
[313389164,1707261102831,2000.0,0.00022321,2]
[313389165,1707261105907,250.0,0.00022195,2]
[313389166,1707261111193,185558.0315,0.00022437,2]
[313389167,1707261113065,100000.0,0.00022437,2]
[313389168,1707261117392,4627.9433,0.00022437,2]
[313389169,1707261153109,156.99,0.00021772,2]
[313389170,1707261160492,277014.7118,0.00022437,2]
[313389171,1707261172916,1262.37049448,0.00022232,2]
[313389172,1707261197216,2270.9025,0.00022438,2]
[313389173,1707261228933,347.1,0.00021775,2]
[313389174,1707261235132,236.51,0.0002181,10]
[313389175,1707261264309,23771.77,0.00021778,2]
[313389176,1707261290828,191.22,0.00021777,2]
[313389177,1707261292989,231.20983156,0.000225,2]
[313389178,1707261320011,1366.39,0.0002196,2]
[313389179,1707261371845,472.5176,0.00022403,2]
[313389180,1707261394266,204.0,0.00021506,2]
[313389181,1707261396389,250.0,0.00021918,2]
[313389182,1707261437987,685.17,0.00021803,2]
[313389183,1707261451299,606.16,0.00019885,2]
[313389184,1707261451531,606.16,0.00022149,2]
[313389185,1707261510821,729.9,0.00021736,2]
[313389186,1707261533337,289.36701921,0.00022404,2]
[313389187,1707261538347,289.36701904,0.0002243,2]
[313389188,1707261543342,289.36701904,0.00022456,2]
[313389189,1707261548350,289.36701904,0.00022482,2]
[313389190,1707261550205,1857.76,0.00021734,2]
[313389191,1707261556013,250.0,0.00021734,2]
[313389192,1707261570486,155.37,0.00021884,2]
[313389193,1707261570683,155.37,0.00022455,2]
[313389194,1707261576445,176.99,0.00022,2]
[313389196,1707261649712,5108.88464,0.00027,30]
[313389197,1707261654790,173.55,0.0002169,2]
[313389198,1707261736817,250.0,0.00022,2]
[313389199,1707261738143,250.0,0.00022274,2]
[313389200,1707261837139,1262.37049448,0.00022473,2]
[313389201,1707261865357,451.86,0.00021679,2]
[313389202,1707261884690,545.54,0.00019762,2]
[313389203,1707261884915,545.54,0.00022025,2]
[313389204,1707261955553,200.0,0.00021679,2]
[313389205,1707261988332,155.37,0.00021891,2]
[313389206,1707262031688,250.0,0.00021739,2]
[313389207,1707262084232,204.0,0.0002177,2]
[313389208,1707262088412,173.55,0.00021723,2]
[313389209,1707262108712,231.49361527,0.00022404,2]
[313389210,1707262113704,231.49361523,0.0002243,2]
[313389211,1707262118697,231.49361523,0.00022456,2]
[313389212,1707262123698,231.49361523,0.00022482,2]
[313389213,1707262133268,267.51538496,0.00021723,2]
[313389214,1707262153256,267.51538496,0.00021723,2]
[313389216,1707262175266,267.51538496,0.00021723,2]
[313389217,1707262187925,1548.13,0.00021672,2]
[313389218,1707262190653,176.99,0.00021732,2]
[313389219,1707262191956,176.99,0.0002228,2]
[313389220,1707262195258,267.51538496,0.00021723,2]
[313389221,1707262229271,267.51538496,0.00021723,2]
[313389234,1707262232257,-358.0673694,0.00022502,2]
[313389235,1707262232267,-150.0,0.00022503,2]
[313389236,1707262232277,-238.90596746,0.00022503,2]
[313389237,1707262232288,-2525.62198539,0.00022503,2]
[313389238,1707262232300,-1952.31812957,0.00022503,2]
[313389239,1707262232309,-4654.3000471,0.00022504,2]
[313389240,1707262232319,-10135.97700031,0.00022505,2]
[313389241,1707262232328,-1926.35044388,0.00022505,2]
[313389242,1707262232338,-231.49361523,0.00022508,2]
[313389243,1707262232347,-231.49361523,0.00022534,2]
[313389244,1707262232356,-231.49361523,0.0002256,2]
[313389245,1707262232365,-34753.37,0.0002256,2]
[313389246,1707262232374,-499.99,0.0002256,2]
[313389247,1707262232383,-6387.23,0.0002256,2]
[313389248,1707262232393,-231.49361523,0.00022586,2]
[313389249,1707262232402,-9999.99,0.000226,2]
[313389250,1707262232411,-200.0,0.000226,8]
[313389251,1707262232421,-231.49361523,0.00022612,2]
[313389252,1707262232430,-517.26,0.00022632,2]
[313389253,1707262232440,-8477.2,0.00022632,2]
[313389254,1707262232449,-261.96492302,0.00022632,2]
[313389255,1707262232458,-188.79397858,0.00022633,2]
[313389256,1707262232467,-421.53368202,0.00022633,2]
[313389257,1707262232476,-2925.73057809,0.00022633,2]
[313389258,1707262232485,-673.17387207,0.00022633,2]
[313389259,1707262232494,-231.49361523,0.00022638,2]
[313389260,1707262232504,-231.49361523,0.00022663,2]
[313389261,1707262232514,-932.43893172,0.00022676,2]
[313389262,1707262232525,-714.17,0.00022681,2]
[313389263,1707262232534,-348.26,0.00022689,2]
[313389264,1707262232694,-231.49361523,0.00022689,2]
[313389265,1707262232704,-720.96,0.0002269,2]
[313389266,1707262232713,-999.99,0.0002269,2]
[313389267,1707262232722,-1960.27,0.0002269,2]
[313389268,1707262232730,-1549.87,0.0002269,2]
[313389269,1707262232739,-421.53368201,0.00022699,2]
[313389270,1707262232748,-500.0,0.000227,8]
[313389271,1707262232758,-3478.9092,0.00022702,2]
[313389272,1707262232767,-231.49361523,0.00022715,2]
[313389273,1707262232776,-6735.6551,0.0002272,2]
[313389274,1707262232785,-3826.6069,0.0002272,2]
[313389275,1707262232794,-178.02648423,0.00022721,2]
[313389276,1707262232804,-299.41085415,0.00022722,2]
[313389277,1707262232813,-500.0,0.00022731,2]
[313389278,1707262232822,-500.0,0.00022731,2]
[313389279,1707262232831,-500.0,0.00022731,2]
[313389280,1707262232840,-500.0,0.00022731,2]
[313389281,1707262232850,-500.0,0.00022731,2]
[313389282,1707262232858,-500.0,0.00022731,2]
[313389283,1707262232868,-500.0,0.00022731,2]
[313389284,1707262232877,-500.0,0.00022731,2]
[313389285,1707262232886,-500.0,0.00022731,2]
[313389286,1707262232898,-500.0,0.00022731,2]
[313389287,1707262232907,-500.0,0.00022731,2]
[313389288,1707262232916,-500.0,0.00022731,2]
[313389289,1707262232926,-500.0,0.00022731,2]
[313389290,1707262232935,-500.0,0.00022731,2]
[313389291,1707262232945,-500.0,0.00022731,2]
[313389292,1707262232954,-500.0,0.00022731,2]
[313389293,1707262232963,-500.0,0.00022731,2]
[313389294,1707262232972,-500.0,0.00022731,2]
[313389295,1707262232981,-354.6165342,0.00022731,2]
[313389296,1707262232990,-619.04714931,0.00022731,2]
[313389297,1707262233000,-500.0,0.00022731,2]
[313389298,1707262233009,-500.0,0.00022731,2]
[313389299,1707262233018,-500.0,0.00022731,2]
[313389300,1707262233027,-500.0,0.00022731,2]
[313389301,1707262233036,-500.0,0.00022731,2]
[313389302,1707262233045,-500.0,0.00022731,2]
[313389303,1707262233055,-500.0,0.00022731,2]
[313389304,1707262233064,-500.0,0.00022731,2]
[313389305,1707262233073,-500.0,0.00022731,2]
[313389306,1707262233082,-500.0,0.00022731,2]
[313389307,1707262233091,-500.0,0.00022731,2]
[313389308,1707262233100,-500.0,0.00022731,2]
[313389309,1707262233110,-500.0,0.00022731,2]
[313389310,1707262233119,-500.0,0.00022731,2]
[313389311,1707262233128,-500.0,0.00022731,2]
[313389312,1707262233137,-500.0,0.00022731,2]
[313389313,1707262233147,-500.0,0.00022731,2]
[313389314,1707262233156,-500.0,0.00022731,2]
[313389315,1707262233165,-500.0,0.00022731,2]
[313389316,1707262233175,-500.0,0.00022731,2]
[313389317,1707262233184,-500.0,0.00022731,2]
[313389318,1707262233195,-500.0,0.00022731,2]
[313389319,1707262233206,-500.0,0.00022731,2]
[313389320,1707262233215,-500.0,0.00022731,2]
[313389321,1707262233225,-500.0,0.00022731,2]
[313389322,1707262233234,-500.0,0.00022731,2]
[313389323,1707262233244,-500.0,0.00022731,2]
[313389324,1707262233254,-500.0,0.00022731,2]
[313389325,1707262233263,-500.0,0.00022731,2]
[313389326,1707262233273,-500.0,0.00022731,2]
[313389327,1707262233283,-500.0,0.00022731,2]
[313389328,1707262233293,-500.0,0.00022731,2]
[313389329,1707262233302,-500.0,0.00022731,2]
[313389330,1707262233312,-500.0,0.00022731,2]
[313389331,1707262233321,-500.0,0.00022731,2]
[313389332,1707262233330,-500.0,0.00022731,2]
[313389333,1707262233340,-500.0,0.00022731,2]
[313389334,1707262233349,-500.0,0.00022731,2]
[313389335,1707262233359,-500.0,0.00022731,2]
[313389336,1707262233368,-500.0,0.00022731,2]
[313389337,1707262233378,-500.0,0.00022731,2]
[313389338,1707262233388,-500.0,0.00022731,2]
[313389339,1707262233397,-500.0,0.00022731,2]
[313389340,1707262233406,-500.0,0.00022731,2]
[313389341,1707262233415,-500.0,0.00022731,2]
[313389342,1707262233425,-500.0,0.00022731,2]
[313389343,1707262233434,-500.0,0.00022731,2]
[313389344,1707262233443,-1060987.52769508,0.00022732,2]
[313389345,1707262233453,-195855.00611959,0.00022733,2]
[313389346,1707262233489,-26.72918041,0.00022733,2]
[313389347,1707262233499,-231.49361523,0.00022741,2]
[313389348,1707262233511,-71.0800728,0.00022765,2]
[313389349,1707262233524,-350.45360921,0.00022765,2]
[313389350,1707262233533,-231.49361523,0.00022767,2]
[313389351,1707262233543,-720.09,0.00022775,2]
[313389352,1707262233553,-718.27,0.00022776,2]
[313389353,1707262233562,-303.29043206,0.00022777,2]
[313389354,1707262233572,-567.67668109,0.00022777,2]
[313389355,1707262233581,-715.09,0.00022777,2]
[313389356,1707262233590,-724.31,0.00022777,2]
[313389357,1707262233600,-1000.0,0.00022792,2]
[313389358,1707262233609,-155.35667322,0.00022793,2]
[313389359,1707262233618,-2627.38983297,0.00022793,2]
[313389360,1707262233627,-768.37885061,0.00022793,2]
[313389361,1707262233637,-336.46001959,0.00022793,2]
[313389362,1707262233646,-231.49361523,0.00022793,2]
[313389363,1707262233656,-168.33558805,0.00022794,2]
[313389364,1707262233666,-705.50788492,0.00022794,2]
[313389365,1707262233676,-8121.65296354,0.00022795,2]
[313389366,1707262233689,-7726.18936928,0.00022795,2]
[313389367,1707262233700,-784.17302211,0.00022795,2]
[313389368,1707262233713,-1305.85682394,0.00022795,2]
[313389369,1707262233725,-160.33697151,0.00022795,2]
[313389370,1707262233734,-2046.66981816,0.00022795,2]
[313389371,1707262233747,-362.73325483,0.00022795,2]
[313389372,1707262233759,-553.31996326,0.00022795,2]
[313389373,1707262233770,-433.5118233,0.00022795,2]
[313389374,1707262233783,-800.0,0.00022795,2]
[313389375,1707262233794,-1406.82289289,0.00022795,2]
[313389376,1707262233806,-609.86344662,0.00022795,2]
[313389377,1707262233818,-5411.49630549,0.00022795,2]
[313389385,1707262238238,-544.3953379,0.00022795,2]
[313389386,1707262238294,-261.53643419,0.00022795,2]
[313389387,1707262238310,-4755.63298702,0.00022795,2]
[313389388,1707262238326,-39966.58210165,0.00022795,2]
[313389389,1707262238337,-656.26799496,0.00022795,2]
[313389390,1707262238347,-281.27567579,0.00022795,2]
[313389391,1707262238358,-286.26046709,0.00022795,2]
[313389392,1707262238371,-546.0,0.00022798,2]
[313389393,1707262238383,-700.0,0.000228,8]
[313389394,1707262238398,-800.0,0.00022814,2]
[313389395,1707262238412,-800.0,0.00022815,2]
[313389396,1707262238425,-800.0,0.00022815,2]
[313389397,1707262238437,-231.49361523,0.00022819,2]
[313389398,1707262238447,-729.9,0.00022822,2]
[313389399,1707262238459,-234.15069741,0.00022828,2]
[313389400,1707262238472,-421.53368201,0.00022831,2]
[313389401,1707262238485,-3161.0,0.00022832,2]
[313389402,1707262238497,-231.49361523,0.00022845,2]
[313389403,1707262238510,-231.49361523,0.00022871,2]
[313389404,1707262238524,-500.0,0.00022885,2]
[313389405,1707262238537,-501.6691,0.00022885,2]
[313389406,1707262238551,-1000.0,0.00022885,2]
[313389407,1707262238563,-271.4136,0.00022885,2]
[313389408,1707262238573,-421.53368201,0.00022897,2]
[313389409,1707262238583,-1057.45218624,0.00022897,2]
[313389410,1707262238593,-532.1730521,0.00022897,2]
[313389411,1707262238603,-231.49361523,0.00022897,2]
[313389412,1707262238614,-5295.27681113,0.00022897,2]
[313389413,1707262238626,-6799.3796,0.00022899,2]
[313389414,1707262238637,-1380.57646214,0.000229,6]
[313389416,1707262238648,-1000.0,0.000229,8]
[313389417,1707262238659,-218.39209122,0.00022974,2]
[313389418,1707262238670,-299.41085415,0.00022986,2]
[313389419,1707262238682,-47909.0,0.00022986,2]
[313389421,1707262238692,-299.41085415,0.0002299,2]
[313389422,1707262238702,-500.0,0.00022995,2]
[313389423,1707262238716,-500.0,0.00022995,2]
[313389424,1707262238729,-500.0,0.00022995,2]
[313389425,1707262238740,-248.07374907,0.00022995,2]
[313389427,1707262238755,-393.49433292,0.00022995,2]
[313389428,1707262238767,-446.88403832,0.00022995,2]
[313389429,1707262238778,-500.0,0.00022995,2]
[313389430,1707262238789,-500.0,0.00022995,2]
[313389431,1707262238800,-261.41322819,0.00022995,2]
[313389432,1707262238812,-500.0,0.00022995,2]
[313389433,1707262238824,-500.0,0.00022995,2]
[313389434,1707262238836,-500.0,0.00022995,2]
[313389435,1707262238848,-500.0,0.00022995,2]
[313389436,1707262238858,-366.25183411,0.00022995,2]
[313389437,1707262238870,-500.0,0.00022995,2]
[313389438,1707262238881,-351.13592353,0.00022995,2]
[313389439,1707262239089,-148.86407647,0.00022995,2]
[313389440,1707262239099,-0.67689094,0.00022995,2]
[313389441,1707262239113,-265.25707154,0.00022995,2]
[313389442,1707262239127,-234.06603752,0.00022995,2]
[313389443,1707262239138,-213.8276861,0.00022995,2]
[313389444,1707262239149,-172.26569345,0.00022995,2]
[313389445,1707262239163,-315.19030927,0.00022995,2]
[313389446,1707262239183,-39.58062466,0.00022995,2]
[313389447,1707262239194,-318.99175967,0.00022995,2]
[313389448,1707262239206,-374.9920455,0.00022995,2]
[313389449,1707262239215,-500.0,0.00022995,2]
[313389450,1707262239225,-500.0,0.00022995,2]
[313389451,1707262239234,-500.0,0.00022995,2]
[313389452,1707262239243,-500.0,0.00022995,2]
[313389453,1707262239252,-500.0,0.00022995,2]
[313389454,1707262239414,-458.11098821,0.00022995,2]
[313389455,1707262239426,-1444.95322621,0.00022996,2]
[313389456,1707262239438,-948.984565,0.00022996,2]
[313389457,1707262239463,-51966.942506,0.00022996,2]
[313389458,1707262239493,-24845.0033405,0.00022996,2]
[313389459,1707262239506,-48999.5751412,0.00022996,2]
[313389460,1707262239518,-209584.76310455,0.00022996,2]
[313389461,1707262239529,-725.62826146,0.00022996,2]
[313389462,1707262239541,-403.09841461,0.00022996,2]
[313389463,1707262239557,-598.79650643,0.00022996,2]
[313389464,1707262239569,-405.4670116,0.00022996,2]
[313389465,1707262239583,-4401.08588356,0.00022996,2]
[313389466,1707262239596,-10421.3981924,0.00022996,2]
[313389467,1707262239608,-266959.53250414,0.00022996,2]
[313389468,1707262240830,-30163.0,0.00022996,2]
[313389469,1707262240884,-21343.602,0.00022996,2]
[313389470,1707262240940,-569.97578812,0.00022996,2]
[313389471,1707262240950,-2788.82514314,0.00022997,2]
[313389472,1707262240959,-181.43729233,0.00022997,2]
[313389473,1707262240969,-155.0,0.00022997,2]
[313389474,1707262240979,-413.06464927,0.00022997,2]
[313389475,1707262240988,-158.69334098,0.00022997,2]
[313389476,1707262240998,-155.0,0.00022997,2]
[313389477,1707262241008,-342.81727514,0.00022997,2]
[313389478,1707262241018,-3028.7053731,0.00022997,2]
[313389479,1707262241696,-184.75483576,0.00022897,2]
[313389480,1707262241707,-45107.69043813,0.00022997,2]
[313389481,1707262241752,-1151.637444,0.00022997,2]
[313389482,1707262241810,-550.0,0.00022997,2]
[313389505,1707262243250,-288.21953179,0.00022997,2]
[313389506,1707262243413,-1182.97902427,0.00022997,2]
[313389507,1707262243424,-10978.43915044,0.00022997,2]
[313389508,1707262243437,-1090.33213881,0.00022997,2]
[313389509,1707262243483,-444382.0775565,0.00022997,2]
[313389510,1707262243493,-240.11429772,0.00022997,2]
[313389511,1707262243502,-245.54677836,0.00022997,2]
[313389512,1707262243511,-2062.26373216,0.00022997,2]
[313389513,1707262243520,-176.15106534,0.00022997,2]
[313389514,1707262243531,-217.42690474,0.00022997,2]
[313389515,1707262243541,-158.8993738,0.00022997,2]
[313389516,1707262243551,-500.0,0.00022997,2]
[313389517,1707262243561,-212.19876301,0.00022997,2]
[313389518,1707262243571,-4252.82487268,0.00022999,2]
[313389519,1707262243580,-222.39757032,0.00022999,2]
[313389520,1707262243590,-155.0,0.00022999,2]
[313389521,1707262243599,-155.0,0.00022999,2]
[313389522,1707262243608,-195.90438214,0.00022999,2]
[313389523,1707262243618,-249.52274701,0.00022999,2]
[313389524,1707262243627,-155.40419727,0.00022999,2]
[313389526,1707262243636,-155.08519479,0.00022999,2]
[313389527,1707262243649,-856.16974994,0.00022999,2]
[313389528,1707262243658,-374.96758824,0.00022999,2]
[313389529,1707262243667,-351.7331543,0.00022999,2]
[313389530,1707262243677,-210.8048654,0.00022999,2]
[313389531,1707262243687,-356.35226096,0.00022999,2]
[313389532,1707262243696,-630.55738904,0.00022999,2]
[313389533,1707262243706,-184.44865705,0.00022999,2]
[313389534,1707262243716,-2073.2635017,0.00022999,2]
[313389535,1707262243725,-247.36889183,0.00022999,2]
[313389536,1707262243736,-155.0,0.00022999,2]
[313389537,1707262243747,-150.01,0.00022999,2]
[313389538,1707262243757,-215.13662203,0.00022999,2]
[313389539,1707262243766,-300.0,0.00022999,2]
[313389540,1707262243776,-300.0,0.00022999,2]
[313389541,1707262243785,-300.0,0.00022999,2]
[313389542,1707262243794,-300.0,0.00022999,2]
[313389543,1707262243803,-300.0,0.00022999,2]
[313389544,1707262243813,-300.0,0.00022999,2]
[313389545,1707262243822,-300.0,0.00022999,2]
[313389546,1707262243834,-300.0,0.00022999,2]
[313389547,1707262243845,-300.0,0.00022999,2]
[313389548,1707262243855,-300.0,0.00022999,2]
[313389549,1707262243866,-300.0,0.00022999,2]
[313389550,1707262243876,-102428.11411443,0.00023,2]
[313389551,1707262243885,-507313.35721424,0.00023,2]
[313389552,1707262243895,-2000.0,0.00023,2]
[313389553,1707262243904,-200.0,0.00023,2]
[313389554,1707262243913,-2000.0,0.00023,2]
[313389555,1707262243923,-200.0,0.00023,2]
[313389556,1707262243933,-158.46,0.00023,2]
[313389557,1707262243943,-172.13,0.00023109,2]
[313389558,1707262243952,-1262.37049448,0.00023222,2]
[313389559,1707262243962,-2000.0,0.0002323,2]
[313389560,1707262244009,-200.0,0.0002323,2]
[313389561,1707262244022,-2000.0,0.0002323,2]
[313389562,1707262244031,-200.0,0.0002323,2]
[313389563,1707262244041,-1548.13,0.00023316,2]
[313389564,1707262244050,-2000.0,0.00023462,2]
[313389565,1707262244060,-200.0,0.00023462,2]